[Event "Mitropa Cup Open 2019"]
[Site "Radenci"]
[Date "2019.06.01"]
[Round "6.20"]
[White "Eugene, Floryan"]
[Black "Lodici, Lorenzo"]
[Result "0-1"]
[ECO "C54"]
[WhiteElo "2303"]
[BlackElo "2453"]
[Annotator "ChessBase"]
[PlyCount "56"]
[EventDate "2019.05.27"]
[EventType "team-tourn"]
[EventCountry "SLO"]
[SourceTitle "playchess.com"]
[Source "ChessBase"]
[SourceQuality "1"]
[WhiteTeam "France"]
[BlackTeam "Italy"]
[WhiteTeamCountry "FRA"]
[BlackTeamCountry "ITA"]
[TimeControl "40/5400+30:1800+30"]

1. e4 {[%emt 0:00:00]} e5 {[%emt 0:00:00]} 2. Nf3 {[%emt 0:00:00]} Nc6 {[%emt 0:00:00]} 3. Bc4 {[%emt 0:00:00]} Bc5 {[%emt 0:00:00]} 4. O-O {[%emt 0:00:44]} Nf6 {[%emt 0:00:00]} 5. d3 {[%emt 0:00:06]} a6 {[%emt 0:02:34]} 6. c3 {[%emt 0:01:39]} Ba7 {[%emt 0:00:41]} 7. Re1 {[%emt 0:01:37]} d6 {[%emt 0:00:23]} 8. Bb3 {[%emt 0:00:05]} h6 {[%emt 0:02:46]} 9. h3 {[%emt 0:17:34]} g5 {[%emt 0:00:51]} 10. d4 {[%emt 0:00:53]} g4 {[%emt 0:07:23]} 11. dxe5 {[%emt 0:02:34]} gxf3 {[%emt 0:04:39]} 12. exf6 {[%emt 0:00:06]} Qxf6 {[%emt 0:13:23]} 13. Nd2 {[%emt 0:29:53]} Ne5 {[%emt 0:28:14]} 14. Nxf3 {[%emt 0:05:06]} Rg8 {[%emt 0:00:07]} 15. Kh2 {[%emt 0:07:23]} Bxh3 {[%emt 0:09:00]} 16. Nxe5 {[%emt 0:08:56]} Qxe5+ {[%emt 0:01:28]} 17. g3 {[%emt 0:08:04]} Bxf2 {[%emt 0:02:44]} 18. Qf3 {[%emt 0:00:06]} Qxg3+ {[%emt 0:00:51]} 19. Qxg3 {[%emt 0:00:04]} Bxg3+ {[%emt 0:00:04]} 20. Kxh3 {[%emt 0:00:03]} Bxe1 {[%emt 0:00:05]} 21. Bf4 {[%emt 0:02:02]} Bf2 {[%emt 0:00:05]} 22. Rf1 {[%emt 0:00:34]} Bb6 {[%emt 0:00:13]} 23. Ba4+ {[%emt 0:02:12]} Ke7 {[%emt 0:01:06]} 24. e5 {[%emt 0:00:36]} Rg1 {[%emt 0:00:49]} 25. exd6+ {[%emt 0:00:55]} cxd6 {[%emt 0:00:02]} 26. Rf3 {[%emt 0:00:06]} Rag8 {[%emt 0:00:24]} 27. Kh2 {[%emt 0:02:04]} R8g2+ {[%emt 0:01:21]} 28. Kh3 {[%emt 0:00:03]} Rf2 {[%emt 0:00:26]} 0-1

[Event "Mitropa Cup Open 2019"]
[Site "Radenci"]
[Date "2019.06.02"]
[Round "7.1"]
[White "Travadon, Loic"]
[Black "Mihok, Oliver"]
[Result "0-1"]
[ECO "E92"]
[WhiteElo "2441"]
[BlackElo "2541"]
[Annotator "ChessBase"]
[PlyCount "76"]
[EventDate "2019.05.27"]
[EventType "team-tourn"]
[EventCountry "SLO"]
[SourceTitle "playchess.com"]
[Source "ChessBase"]
[SourceQuality "1"]
[WhiteTeam "France"]
[BlackTeam "Hungary"]
[WhiteTeamCountry "FRA"]
[BlackTeamCountry "HUN"]
[TimeControl "40/5400+30:1800+30"]

1. d4 {[%emt 0:00:00]} Nf6 {[%emt 0:00:00]} 2. c4 {[%emt 0:00:00]} g6 {[%emt 0:00:00]} 3. Nc3 {[%emt 0:00:00]} Bg7 {[%emt 0:00:00]} 4. e4 {[%emt 0:00:00]} d6 {[%emt 0:00:00]} 5. Nf3 {[%emt 0:00:00]} O-O {[%emt 0:00:00]} 6. Be2 {[%emt 0:00:00]} e5 {[%emt 0:01:04]} 7. d5 {[%emt 0:00:00]} a5 {[%emt 0:00:59]} 8. Bg5 {[%emt 0:00:00]} h6 {[%emt 0:00:17]} 9. Be3 {[%emt 0:00:03]} Ng4 {[%emt 0:00:18]} 10. Bd2 {[%emt 0:00:03]} f5 {[%emt 0:01:12]} 11. h3 {[%emt 0:00:17]} Nf6 {[%emt 0:00:12]} 12. exf5 {[%emt 0:00:05]} gxf5 {[%emt 0:00:08]} 13. Qc1 {[%emt 0:00:03]} f4 {[%emt 0:00:40]} 14. g3 {[%emt 0:00:03]} e4 {[%emt 0:00:17]} 15. Nh4 {[%emt 0:00:03]} e3 {[%emt 0:00:24]} 16. fxe3 {[%emt 0:00:04]} fxg3 {[%emt 0:00:05]} 17. Ng6 {[%emt 0:00:08]} Re8 {[%emt 0:00:07]} 18. Nf4 {[%emt 0:00:04]} Na6 {[%emt 0:00:33]} 19. Rg1 {[%emt 0:00:03]} Nc5 {[%emt 0:04:50]} 20. Qc2 {[%emt 0:00:05]} Nfe4 {[%emt 0:08:44]} 21. Nxe4 {[%emt 0:00:08]} Nxe4 {[%emt 0:06:28]} 22. O-O-O {[%emt 0:00:29]} Bf5 {[%emt 0:16:32]} 23. Bd3 {[%emt 0:18:39]} Qg5 {[%emt 0:10:54]} 24. Be1 {[%emt 0:04:48]} Re5 {[%emt 0:07:12]} 25. h4 {[%emt 0:33:32]} Qxh4 {[%emt 0:05:33]} 26. Bxe4 {[%emt 0:11:36]} Bxe4 {[%emt 0:06:03]} 27. Bxg3 {[%emt 0:08:35]} Qf6 {[%emt 0:03:17]} 28. Qh2 {[%emt 0:07:13]} Bh7 {[%emt 0:05:31]} 29. Ne6 {[%emt 0:03:10]} Rxe6 {[%emt 0:03:42]} 30. dxe6 {[%emt 0:00:10]} Qxe6 {[%emt 0:02:08]} 31. Be1 {[%emt 0:01:05]} Qe4 {[%emt 0:03:55]} 32. Rxg7+ {[%emt 0:02:14]} Kxg7 {[%emt 0:00:05]} 33. Bc3+ {[%emt 0:00:20]} Kg8 {[%emt 0:01:59]} 34. Qg3+ {[%emt 0:00:24]} Bg6 {[%emt 0:00:15]} 35. Kd2 {[%emt 0:00:36]} Rf8 {[%emt 0:01:59]} 36. Qg1 {[%emt 0:06:29]} Kh7 {[%emt 0:02:50]} 37. Bxa5 {[%emt 0:01:42]} Qc2+ {[%emt 0:01:21]} 38. Ke1 {[%emt 0:00:01]} Bh5 {[%emt 0:00:24]} 0-1

[Event "Mitropa Cup Open 2019"]
[Site "Radenci"]
[Date "2019.06.02"]
[Round "7.2"]
[White "Kozak, Adam"]
[Black "Joie, Sebastien"]
[Result "1-0"]
[ECO "A07"]
[WhiteElo "2458"]
[BlackElo "2425"]
[Annotator "ChessBase"]
[PlyCount "45"]
[EventDate "2019.05.27"]
[EventType "team-tourn"]
[EventCountry "SLO"]
[SourceTitle "playchess.com"]
[Source "ChessBase"]
[SourceQuality "1"]
[WhiteTeam "Hungary"]
[BlackTeam "France"]
[WhiteTeamCountry "HUN"]
[BlackTeamCountry "FRA"]
[TimeControl "40/5400+30:1800+30"]

1. Nf3 {[%emt 0:00:00]} d5 {[%emt 0:00:00]} 2. g3 {[%emt 0:00:08]} c6 {[%emt 0:00:00]} 3. Bg2 {[%emt 0:00:05]} Bf5 {[%emt 0:00:00]} 4. O-O {[%emt 0:00:15]} e6 {[%emt 0:00:00]} 5. c4 {[%emt 0:00:08]} dxc4 {[%emt 0:00:04]} 6. Nc3 {[%emt 0:05:00]} Nf6 {[%emt 0:02:56]} 7. b3 {[%emt 0:17:32]} cxb3 {[%emt 0:00:51]} 8. Qxb3 {[%emt 0:01:23]} Qb6 {[%emt 0:02:21]} 9. Qa4 {[%emt 0:04:57]} Qb4 {[%emt 0:04:52]} 10. Qd1 {[%emt 0:02:21]} h6 {[%emt 0:02:22]} 11. a4 {[%emt 0:02:02]} Qc4 {[%emt 0:14:12]} 12. a5 {[%emt 0:05:07]} Be7 {[%emt 0:01:22]} 13. Ne5 {[%emt 0:14:29]} Qd4 {[%emt 0:00:21]} 14. a6 {[%emt 0:01:15]} Qb6 {[%emt 0:11:35]} 15. axb7 {[%emt 0:01:00]} Qxb7 {[%emt 0:00:02]} 16. Qa4 {[%emt 0:00:32]} O-O {[%emt 0:06:57]} 17. Nxc6 {[%emt 0:01:45]} Nxc6 {[%emt 0:00:04]} 18. Bxc6 {[%emt 0:00:19]} Qc7 {[%emt 0:00:31]} 19. Bxa8 {[%emt 0:01:13]} Rxa8 {[%emt 0:00:02]} 20. Ba3 {[%emt 0:01:54]} Bxa3 {[%emt 0:01:15]} 21. Rxa3 {[%emt 0:00:50]} Bh3 {[%emt 0:01:00]} 22. Rb1 {[%emt 0:01:07]} Rd8 {[%emt 0:00:13]} 23. d3 {[%emt 0:05:47]} 1-0

[Event "Mitropa Cup Open 2019"]
[Site "Radenci"]
[Date "2019.06.02"]
[Round "7.3"]
[White "Di Nicolantonio, Lucas"]
[Black "Csonka, Balazs"]
[Result "0-1"]
[ECO "C34"]
[WhiteElo "2379"]
[BlackElo "2466"]
[Annotator "ChessBase"]
[PlyCount "56"]
[EventDate "2019.05.27"]
[EventType "team-tourn"]
[EventCountry "SLO"]
[SourceTitle "playchess.com"]
[Source "ChessBase"]
[SourceQuality "1"]
[WhiteTeam "FRA"]
[BlackTeam "HUN"]
[WhiteTeamCountry "FRA"]
[TimeControl "40/5400+30:1800+30"]

1. e4 {[%emt 0:00:00]} e5 {[%emt 0:01:04]} 2. f4 {[%emt 0:00:00]} exf4 {[%emt 0:00:34]} 3. Nf3 {[%emt 0:00:06]} Nf6 {[%emt 0:03:46]} 4. e5 {[%emt 0:01:57]} Nh5 {[%emt 0:01:30]} 5. d4 {[%emt 0:04:36]} d6 {[%emt 0:03:14]} 6. Qe2 {[%emt 0:05:10]} d5 {[%emt 0:14:57]} 7. Nc3 {[%emt 0:31:41]} g6 {[%emt 0:16:12]} 8. Bd2 {[%emt 0:03:23]} Bg7 {[%emt 0:01:08]} 9. O-O-O {[%emt 0:02:00]} O-O {[%emt 0:00:14]} 10. Qf2 {[%emt 0:01:57]} Nc6 {[%emt 0:09:17]} 11. g3 {[%emt 0:03:48]} f6 {[%emt 0:20:18]} 12. gxf4 {[%emt 0:21:23]} fxe5 {[%emt 0:00:11]} 13. dxe5 {[%emt 0:00:05]} Kh8 {[%emt 0:04:38]} 14. Be3 {[%emt 0:04:39]} Nxf4 {[%emt 0:10:54]} 15. Bxf4 {[%emt 0:00:26]} Rxf4 {[%emt 0:00:02]} 16. Nxd5 {[%emt 0:00:35]} Qf8 {[%emt 0:02:12]} 17. Nxf4 {[%emt 0:01:49]} Qxf4+ {[%emt 0:00:02]} 18. Kb1 {[%emt 0:01:07]} Bg4 {[%emt 0:00:09]} 19. Bg2 {[%emt 0:04:50]} Nxe5 {[%emt 0:03:08]} 20. Qh4 {[%emt 0:06:52]} Nxf3 {[%emt 0:02:03]} 21. Rd8+ {[%emt 0:01:12]} Rxd8 {[%emt 0:00:06]} 22. Qxd8+ {[%emt 0:00:04]} Bf8 {[%emt 0:01:03]} 23. h3 {[%emt 0:03:05]} Bh5 {[%emt 0:03:03]} 24. Qe8 {[%emt 0:00:35]} Kg7 {[%emt 0:01:11]} 25. Ka1 {[%emt 0:00:27]} Qg3 {[%emt 0:00:57]} 26. Rd1 {[%emt 0:00:29]} Bd6 {[%emt 0:00:22]} 27. Bf1 {[%emt 0:00:22]} Ne5 {[%emt 0:00:39]} 28. Rc1 {[%emt 0:00:41]} a5 {[%emt 0:00:32]} 0-1

[Event "Mitropa Cup Open 2019"]
[Site "Radenci"]
[Date "2019.06.02"]
[Round "7.5"]
[White "Gazik, Viktor"]
[Black "Stella, Andrea"]
[Result "1-0"]
[ECO "E05"]
[WhiteElo "2520"]
[BlackElo "2511"]
[Annotator "ChessBase"]
[PlyCount "95"]
[EventDate "2019.05.27"]
[EventType "team-tourn"]
[EventCountry "SLO"]
[SourceTitle "playchess.com"]
[Source "ChessBase"]
[SourceQuality "1"]
[WhiteTeam "Slovakia"]
[BlackTeam "Italy"]
[WhiteTeamCountry "SVK"]
[BlackTeamCountry "ITA"]
[TimeControl "40/5400+30:1800+30"]

1. d4 {[%emt 0:00:00]} e6 {[%emt 0:00:16]} 2. Nf3 {[%emt 0:00:00]} d5 {[%emt 0:00:41]} 3. g3 {[%emt 0:00:34]} Nf6 {[%emt 0:00:41]} 4. Bg2 {[%emt 0:00:08]} Be7 {[%emt 0:00:25]} 5. O-O {[%emt 0:07:49]} O-O {[%emt 0:00:21]} 6. c4 {[%emt 0:04:15]} dxc4 {[%emt 0:00:36]} 7. Qc2 {[%emt 0:03:14]} a6 {[%emt 0:00:37]} 8. a4 {[%emt 0:09:01]} Bd7 {[%emt 0:00:37]} 9. e4 {[%emt 0:17:06]} Nc6 {[%emt 0:06:59]} 10. Nc3 {[%emt 0:04:20]} Nb4 {[%emt 0:07:14]} 11. Qe2 {[%emt 0:00:12]} Nd3 {[%emt 0:00:27]} 12. Be3 {[%emt 0:08:43]} b5 {[%emt 0:04:47]} 13. Ne5 {[%emt 0:01:21]} c5 {[%emt 0:06:13]} 14. Nxd3 {[%emt 0:07:37]} cxd3 {[%emt 0:02:28]} 15. Qxd3 {[%emt 0:00:02]} Bc6 {[%emt 0:07:22]} 16. d5 {[%emt 0:06:14]} b4 {[%emt 0:01:00]} 17. Qc4 {[%emt 0:04:39]} Bb7 {[%emt 0:02:32]} 18. dxe6 {[%emt 0:01:03]} bxc3 {[%emt 0:00:31]} 19. exf7+ {[%emt 0:03:53]} Rxf7 {[%emt 0:08:23]} 20. bxc3 {[%emt 0:00:01]} a5 {[%emt 0:04:55]} 21. Rfd1 {[%emt 0:02:43]} Qc7 {[%emt 0:30:12]} 22. Bf4 {[%emt 0:00:51]} Qc8 {[%emt 0:03:05]} 23. Rab1 {[%emt 0:00:26]} Ba6 {[%emt 0:03:02]} 24. Qa2 {[%emt 0:00:01]} Nh5 {[%emt 0:01:29]} 25. Be3 {[%emt 0:00:01]} Bb7 {[%emt 0:05:07]} 26. Rxb7 {[%emt 0:08:12]} Qxb7 {[%emt 0:00:02]} 27. e5 {[%emt 0:00:09]} Qa6 {[%emt 0:01:32]} 28. Rd7 {[%emt 0:05:50]} Re8 {[%emt 0:01:09]} 29. Bd5 {[%emt 0:01:38]} Qg6 {[%emt 0:00:12]} 30. Ra7 {[%emt 0:04:10]} Kf8 {[%emt 0:01:21]} 31. Bxf7 {[%emt 0:00:03]} Qxf7 {[%emt 0:00:03]} 32. Qxf7+ {[%emt 0:00:08]} Kxf7 {[%emt 0:00:01]} 33. g4 {[%emt 0:00:09]} Ke6 {[%emt 0:00:16]} 34. gxh5 {[%emt 0:00:03]} Kxe5 {[%emt 0:00:12]} 35. Rxa5 {[%emt 0:02:11]} Kd5 {[%emt 0:00:01]} 36. Ra7 {[%emt 0:00:32]} Kc4 {[%emt 0:01:57]} 37. a5 {[%emt 0:00:20]} Kb5 {[%emt 0:01:09]} 38. Kg2 {[%emt 0:00:42]} h6 {[%emt 0:00:27]} 39. Kf3 {[%emt 0:00:29]} Bf6 {[%emt 0:00:29]} 40. Rc7 {[%emt 0:00:00]} Re5 {[%emt 0:00:00]} 41. c4+ {[%emt 0:02:58]} Kxc4 {[%emt 0:03:48]} 42. a6 {[%emt 0:00:30]} Re8 {[%emt 0:00:23]} 43. Rxc5+ {[%emt 0:00:50]} Kb4 {[%emt 0:00:02]} 44. a7 {[%emt 0:01:39]} Rf8 {[%emt 0:01:36]} 45. Kg4 {[%emt 0:01:10]} Ka4 {[%emt 0:00:19]} 46. Rc7 {[%emt 0:01:40]} Ka5 {[%emt 0:00:29]} 47. Rb7 {[%emt 0:00:10]} Be5 {[%emt 0:00:06]} 48. f4 {[%emt 0:00:07]} 1-0

[Event "Mitropa Cup Open 2019"]
[Site "Radenci"]
[Date "2019.06.02"]
[Round "7.6"]
[White "Sonis, Francesco"]
[Black "Druska, Juraj"]
[Result "1/2-1/2"]
[ECO "A13"]
[WhiteElo "2475"]
[BlackElo "2460"]
[Annotator "ChessBase"]
[PlyCount "45"]
[EventDate "2019.05.27"]
[EventType "team-tourn"]
[EventCountry "SLO"]
[SourceTitle "playchess.com"]
[Source "ChessBase"]
[SourceQuality "1"]
[WhiteTeam "Italy"]
[BlackTeam "Slovakia"]
[WhiteTeamCountry "ITA"]
[BlackTeamCountry "SVK"]
[TimeControl "40/5400+30:1800+30"]

1. c4 {[%emt 0:00:00]} e6 {[%emt 0:00:28]} 2. Nf3 {[%emt 0:00:00]} d5 {[%emt 0:00:19]} 3. g3 {[%emt 0:00:00]} dxc4 {[%emt 0:00:57]} 4. Qa4+ {[%emt 0:00:11]} Bd7 {[%emt 0:00:23]} 5. Qxc4 {[%emt 0:00:07]} c5 {[%emt 0:00:04]} 6. Ne5 {[%emt 0:00:29]} Nc6 {[%emt 0:00:06]} 7. Nxd7 {[%emt 0:00:22]} Qxd7 {[%emt 0:00:06]} 8. Bg2 {[%emt 0:00:07]} Nf6 {[%emt 0:00:37]} 9. Qa4 {[%emt 0:01:04]} Nd5 {[%emt 0:03:19]} 10. Nc3 {[%emt 0:00:30]} Be7 {[%emt 0:00:46]} 11. O-O {[%emt 0:09:17]} O-O {[%emt 0:00:05]} 12. d3 {[%emt 0:00:43]} Rfd8 {[%emt 0:06:48]} 13. Rd1 {[%emt 0:03:33]} Rab8 {[%emt 0:15:10]} 14. Qc2 {[%emt 0:24:48]} b5 {[%emt 0:05:25]} 15. Nxd5 {[%emt 0:07:53]} exd5 {[%emt 0:00:56]} 16. Be3 {[%emt 0:01:47]} Rbc8 {[%emt 0:10:39]} 17. a4 {[%emt 0:04:51]} b4 {[%emt 0:01:24]} 18. a5 {[%emt 0:00:38]} Bf6 {[%emt 0:06:07]} 19. Qb3 {[%emt 0:10:43]} Bd4 {[%emt 0:20:00]} 20. Bd2 {[%emt 0:06:43]} Bf6 {[%emt 0:03:22]} 21. Be3 {[%emt 0:00:14]} Bd4 {[%emt 0:00:08]} 22. Bd2 {[%emt 0:00:03]} Bf6 {[%emt 0:01:26]} 23. Be3 1/2-1/2

[Event "Mitropa Cup Open 2019"]
[Site "Radenci"]
[Date "2019.06.02"]
[Round "7.7"]
[White "Repka, Christopher"]
[Black "Lodici, Lorenzo"]
[Result "1/2-1/2"]
[ECO "C45"]
[WhiteElo "2482"]
[BlackElo "2453"]
[Annotator "ChessBase"]
[PlyCount "103"]
[EventDate "2019.05.27"]
[EventType "team-tourn"]
[EventCountry "SLO"]
[SourceTitle "playchess.com"]
[Source "ChessBase"]
[SourceQuality "1"]
[WhiteTeam "Slovakia"]
[BlackTeam "Italy"]
[WhiteTeamCountry "SVK"]
[BlackTeamCountry "ITA"]
[TimeControl "40/5400+30:1800+30"]

1. e4 {[%emt 0:02:55]} e5 {[%emt 0:00:16]} 2. Nf3 {[%emt 0:00:06]} Nc6 {[%emt 0:00:04]} 3. d4 {[%emt 0:00:04]} exd4 {[%emt 0:00:03]} 4. Nxd4 {[%emt 0:00:05]} Qf6 {[%emt 0:05:39]} 5. Be3 {[%emt 0:00:39]} Bc5 {[%emt 0:00:06]} 6. c3 {[%emt 0:00:44]} Qg6 {[%emt 0:00:06]} 7. Nd2 {[%emt 0:05:29]} Nf6 {[%emt 0:01:16]} 8. f3 {[%emt 0:03:44]} d5 {[%emt 0:00:05]} 9. Bb5 {[%emt 0:02:48]} Bxd4 {[%emt 0:02:12]} 10. Bxd4 {[%emt 0:02:29]} dxe4 {[%emt 0:00:05]} 11. Bxf6 {[%emt 0:03:37]} Qxf6 {[%emt 0:00:08]} 12. Nxe4 {[%emt 0:00:05]} Qg6 {[%emt 0:03:49]} 13. Qa4 {[%emt 0:01:32]} O-O {[%emt 0:05:55]} 14. Bxc6 {[%emt 0:13:48]} Qxg2 {[%emt 0:03:23]} 15. O-O-O {[%emt 0:01:33]} bxc6 {[%emt 0:00:07]} 16. Rhg1 {[%emt 0:06:17]} Qh3 {[%emt 0:01:16]} 17. Qxc6 {[%emt 0:03:55]} Bf5 {[%emt 0:03:46]} 18. Rg3 {[%emt 0:23:25]} Qh4 {[%emt 0:12:02]} 19. Qxc7 {[%emt 0:04:11]} Bxe4 {[%emt 0:01:09]} 20. fxe4 {[%emt 0:00:23]} Qxe4 {[%emt 0:00:09]} 21. Rgd3 {[%emt 0:01:43]} g6 {[%emt 0:11:00]} 22. b3 {[%emt 0:05:59]} Rae8 {[%emt 0:06:05]} 23. Kb2 {[%emt 0:01:01]} Qg2+ {[%emt 0:01:52]} 24. R1d2 {[%emt 0:00:09]} Re2 {[%emt 0:03:01]} 25. Qd6 {[%emt 0:00:17]} Rfe8 {[%emt 0:01:13]} 26. c4 {[%emt 0:01:05]} R8e6 {[%emt 0:02:08]} 27. Qd8+ {[%emt 0:02:13]} Kg7 {[%emt 0:00:01]} 28. Qd4+ {[%emt 0:00:06]} Kg8 {[%emt 0:00:58]} 29. Qd8+ {[%emt 0:00:33]} Kg7 {[%emt 0:00:01]} 30. Qd4+ {[%emt 0:00:06]} Kg8 {[%emt 0:01:31]} 31. h4 {[%emt 0:01:52]} R6e4 {[%emt 0:03:31]} 32. Qc3 {[%emt 0:00:24]} Rxd2+ {[%emt 0:02:42]} 33. Rxd2 {[%emt 0:00:06]} Re2 {[%emt 0:00:02]} 34. Rxe2 {[%emt 0:00:06]} Qxe2+ {[%emt 0:00:01]} 35. Ka3 {[%emt 0:00:10]} f5 {[%emt 0:02:42]} 36. Qd4 {[%emt 0:02:39]} Qe7+ {[%emt 0:01:36]} 37. Ka4 {[%emt 0:00:03]} Kf7 {[%emt 0:01:55]} 38. b4 {[%emt 0:01:01]} h6 {[%emt 0:03:58]} 39. c5 {[%emt 0:00:47]} g5 {[%emt 0:00:09]} 40. hxg5 {[%emt 0:00:00]} hxg5 {[%emt 0:00:00]} 41. Qd5+ {[%emt 0:11:39]} Kf6 {[%emt 0:03:25]} 42. c6 {[%emt 0:02:10]} g4 {[%emt 0:03:09]} 43. Qd4+ {[%emt 0:04:02]} Ke6 {[%emt 0:01:28]} 44. b5 {[%emt 0:01:00]} Qc7 {[%emt 0:00:56]} 45. Qe3+ {[%emt 0:01:11]} Kd5 {[%emt 0:02:30]} 46. Qd2+ {[%emt 0:00:53]} Ke6 {[%emt 0:00:54]} 47. Qh6+ {[%emt 0:01:29]} Kd5 {[%emt 0:00:31]} 48. Qd2+ {[%emt 0:07:06]} Ke6 {[%emt 0:00:21]} 49. Qg5 {[%emt 0:02:26]} Ke5 {[%emt 0:10:59]} 50. Qg8 {[%emt 0:04:01]} Kf4 {[%emt 0:01:45]} 51. Qc4+ {[%emt 0:01:02]} Ke5 {[%emt 0:00:11]} 52. Qe2+ {[%emt 0:02:13]} 1/2-1/2

[Event "Mitropa Cup Open 2019"]
[Site "Radenci"]
[Date "2019.06.02"]
[Round "7.8"]
[White "Di Benedetto, Edoardo"]
[Black "Pechac, Jergus"]
[Result "1/2-1/2"]
[ECO "D13"]
[WhiteElo "2404"]
[BlackElo "2461"]
[Annotator "RC"]
[PlyCount "142"]
[EventDate "2019.05.27"]
[EventType "team-tourn"]
[EventCountry "SLO"]
[SourceTitle "playchess.com"]
[Source "ChessBase"]
[SourceQuality "1"]
[WhiteTeam "Italy"]
[BlackTeam "Slovakia"]
[WhiteTeamCountry "ITA"]
[BlackTeamCountry "SVK"]
[TimeControl "40/5400+30:1800+30"]

1. d4 {[%emt 0:00:00]} d5 {[%emt 0:02:40]} 2. c4 {[%emt 0:00:00]} c6 {[%emt 0:00:05]} 3. Nc3 {[%emt 0:00:00]} Nf6 {[%emt 0:00:04]} 4. Nf3 {[%emt 0:00:00]} a6 {[%emt 0:00:04]} 5. cxd5 {[%emt 0:00:55]} cxd5 {[%emt 0:00:09]} 6. Bf4 {[%emt 0:00:26]} Nc6 {[%emt 0:00:17]} 7. e3 {[%emt 0:00:31]} Bg4 {[%emt 0:00:05]} 8. Be2 {[%emt 0:01:15]} e6 {[%emt 0:00:28]} 9. O-O {[%emt 0:00:52]} Bd6 {[%emt 0:01:04]} 10. Bxd6 {[%emt 0:01:32]} Qxd6 {[%emt 0:00:13]} 11. a3 {[%emt 0:01:49]} O-O {[%emt 0:00:10]} 12. Rc1 {[%emt 0:01:56]} Rfc8 {[%emt 0:02:55]} 13. Na4 {[%emt 0:00:27]} Nd7 {[%emt 0:02:11]} 14. Nc5 {[%emt 0:24:30]} Bxf3 {[%emt 0:06:08]} 15. Bxf3 {[%emt 0:00:19]} b6 {[%emt 0:01:10]} 16. Nxd7 {[%emt 0:07:15]} Qxd7 {[%emt 0:00:05]} 17. Qd3 {[%emt 0:08:23]} f5 {[%emt 0:07:21]} 18. b4 {[%emt 0:05:44]} Nd8 {[%emt 0:03:45]} 19. Rxc8 {[%emt 0:01:00]} Qxc8 {[%emt 0:00:06]} 20. Qd2 {[%emt 0:00:40]} Nb7 {[%emt 0:00:23]} 21. Rc1 {[%emt 0:04:51]} Qd7 {[%emt 0:00:19]} 22. Be2 {[%emt 0:02:47]} Nd6 {[%emt 0:00:32]} 23. g3 {[%emt 0:00:52]} h6 {[%emt 0:09:47]} 24. Bd3 {[%emt 0:06:46]} Kh7 {[%emt 0:04:39]} 25. Qe2 {[%emt 0:04:18]} Qa4 {[%emt 0:04:49]} 26. Rc3 {[%emt 0:01:15]} Ra7 {[%emt 0:11:02]} 27. f3 {[%emt 0:00:26]} Qd7 {[%emt 0:02:41]} 28. Qc2 {[%emt 0:08:33]} Kg8 {[%emt 0:04:16]} 29. Kg2 {[%emt 0:01:07]} Kf8 {[%emt 0:07:34]} 30. e4 {[%emt 0:01:56]} Kg8 {[%emt 0:09:11]} 31. e5 {[%emt 0:05:20]} Ne8 {[%emt 0:06:14]} 32. a4 {[%emt 0:04:05]} Kf7 {[%emt 0:03:44]} 33. b5 {[%emt 0:01:12]} a5 {[%emt 0:00:21]} 34. Rc6 {[%emt 0:01:13]} Rc7 {[%emt 0:00:05]} 35. g4 {[%emt 0:01:22]} g6 {[%emt 0:00:33]} 36. gxf5 {[%emt 0:01:22]} gxf5 {[%emt 0:00:08]} 37. Qd2 {[%emt 0:00:53]} Rxc6 {[%emt 0:02:06]} 38. bxc6 {[%emt 0:00:04]} Qxc6 {[%emt 0:00:11]} 39. Bb5 {[%emt 0:00:03]} Qc8 {[%emt 0:02:00]} 40. Qxh6 {[%emt 0:00:00]} Ng7 {[%emt 0:00:00]} 41. Qd2 {[%emt 0:03:10]} Qd8 {[%emt 0:02:46]} 42. Qh6 {[%emt 0:05:42]} Qc8 {[%emt 0:00:36]} 43. Qd2 {[%emt 0:03:18]} Kg6 {[%emt 0:04:39]} 44. h4 {[%emt 0:03:08]} Qd8 {[%emt 0:00:08]} 45. Kh3 {[%emt 0:00:42]} Nh5 {[%emt 0:00:51]} 46. Bd7 {[%emt 0:03:54]} Ng7 {[%emt 0:00:18]} 47. Bb5 {[%emt 0:01:26]} Nh5 {[%emt 0:00:32]} 48. Qc1 {[%emt 0:03:04]} Qe7 {[%emt 0:07:09]} 49. Qc8 {[%emt 0:02:52]} Nf4+ {[%emt 0:01:05]} 50. Kg3 {[%emt 0:00:05]} Nh5+ {[%emt 0:00:05]} 51. Kg2 {[%emt 0:00:11]} Nf4+ {[%emt 0:01:31]} 52. Kf1 {[%emt 0:00:16]} Kg7 {[%emt 0:00:50]} 53. Qd7 {[%emt 0:03:25]} Qxd7 {[%emt 0:02:30]} 54. Bxd7 {[%emt 0:00:04]} Kh6 {[%emt 0:00:26]} 55. Be8 {[%emt 0:01:11]} b5 {[%emt 0:00:21]} 56. Bxb5 {[%emt 0:01:16]} Kh5 {[%emt 0:00:14]} 57. Kf2 {[%emt 0:00:53]} Kxh4 {[%emt 0:00:07]} 58. Bd7 {[%emt 0:01:54]} Kh3 {[%emt 0:02:46]} 59. Bc8 {[%emt 0:01:31]} Kh2 {[%emt 0:00:09]} 60. Bd7 {[%emt 0:00:26]} Nh3+ {[%emt 0:06:12]} 61. Ke1 {[%emt 0:00:13]} Nf4 {[%emt 0:04:58]} 62. Kf2 {[%emt 0:00:10]} Kh3 {[%emt 0:01:16]} 63. Bc8 {[%emt 0:00:08]} Kh4 {[%emt 0:00:10]} 64. Bd7 {[%emt 0:00:06]} Nh3+ {[%emt 0:00:05]} 65. Kg2 {[%emt 0:01:18]} Nf4+ {[%emt 0:00:19]} 66. Kf2 {[%emt 0:00:05]} Kh5 {[%emt 0:02:35]} 67. Ke3 {[%emt 0:00:25]} Kg5 {[%emt 0:00:18]} 68. Bc8 {[%emt 0:00:07]} Ng2+ {[%emt 0:00:04]} 69. Kf2 {[%emt 0:00:04]} Nf4 {[%emt 0:00:05]} 70. Ke3 {[%emt 0:00:06]} Ng2+ {[%emt 0:00:05]} 71. Kf2 {[%emt 0:00:04]} Nf4 {[%emt 0:00:05]} 1/2-1/2